bitfinex-derivatives/quotes_BNBF0:USTF0_20251225
["timestamp","ask_amount","ask_price","bid_price","bid_amount"]
[1766663797256,1.19448056,837.95,837.13,1.19046268]
[1766663797457,0.20771407,837.96,837.13,1.19046268]
[1766663797657,1.19448104,837.95,837.13,1.19046268]
[1766663797860,0.20771407,837.96,837.13,1.19046268]
[1766663798061,1.19448104,837.95,837.13,1.19046268]
[1766663798254,0.20771407,837.96,837.13,1.19046268]
[1766663798457,1.19448104,837.95,837.13,1.19046268]
[1766663798658,0.20771407,837.96,837.13,1.19046268]
[1766663798860,1.19448104,837.95,837.13,1.19046268]
[1766663799057,0.20771407,837.96,837.13,1.19046268]
[1766663799262,1.19448104,837.95,837.13,1.19046268]
[1766663799459,0.20771407,837.96,837.13,1.19046268]
[1766663799662,0.20771407,837.96,837.15,1.19046268]
[1766663814181,0.20771407,837.96,837.16,1.19046268]
[1766663827793,1.19445491,837.95,837.14,1.19046268]
[1766663827992,1.19445491,837.94,837.14,1.19046268]
[1766663828191,0.20771407,837.96,837.14,1.19046268]
[1766663828387,1.19448498,837.95,837.14,1.19046268]
[1766663828593,1.19448498,837.94,837.14,1.19046268]
[1766663828791,0.20771407,837.96,837.14,1.19046268]
[1766663829093,1.19448498,837.95,837.14,1.19046268]
[1766663829289,1.19448498,837.94,837.14,1.19046268]
[1766663829490,0.20771407,837.96,837.14,1.19046268]
[1766663829693,1.19448498,837.95,837.14,1.19046268]
[1766663829894,1.19448498,837.94,837.14,1.19046268]
[1766663830090,0.20771407,837.96,837.14,1.19046268]
[1766663830289,1.19448498,837.95,837.15,1.19046268]
[1766663830593,1.19448498,837.94,837.15,1.19046268]
[1766663830794,1.19448498,837.93,837.12,1.19046268]
[1766663830995,1.19448498,837.92,837.07,1.19046268]
[1766663831192,1.19448498,837.91,837.07,1.19046268]
[1766663831392,1.19448498,837.9,837.07,1.19046268]
[1766663831592,1.19448498,837.89,837.07,1.19046268]
[1766663831796,1.19448498,837.88,837.07,1.19046268]
[1766663831994,1.19448498,837.87,837.07,1.19046268]
[1766663832193,1.19448498,837.86,837.07,1.19046268]
[1766663832497,1.10278708,837.96,837.06,1.19046268]
[1766663832692,1.19459527,837.95,837.06,1.19046268]
[1766663832895,1.19459527,837.94,837.06,1.19046268]
[1766663833090,1.19459527,837.93,837.06,1.19046268]
[1766663833294,1.19459527,837.92,837.06,1.19046268]
[1766663833497,1.19459527,837.91,837.06,1.19046268]
[1766663833694,1.19459527,837.9,837.06,1.19046268]
[1766663833895,1.19459527,837.89,837.06,1.19046268]
[1766663834094,1.19459527,837.88,837.06,1.19046268]
[1766663834394,1.19459527,837.87,837.06,1.19046268]
[1766663834595,1.19459527,837.86,837.06,1.19046268]
[1766663834799,0.20771407,837.96,837.06,1.19046268]
[1766663834998,1.19459491,837.95,837.06,1.19046268]
[1766663835197,1.19459491,837.94,837.06,1.19046268]
[1766663835398,1.19459491,837.93,837.06,1.19046268]
[1766663835598,1.19459491,837.92,837.08,1.19046268]
[1766663835800,1.19459491,837.91,837.08,1.19046268]
[1766663836099,1.19459491,837.9,837.08,1.19046268]
[1766663836296,1.19459491,837.89,837.07,1.19046268]
[1766663836500,0.20771407,837.96,837.07,1.19046268]
[1766663836795,1.1945673,837.95,837.07,1.19046268]
[1766663836999,1.1945673,837.94,837.07,1.19046268]
[1766663837199,0.20771407,837.96,837.07,1.19046268]
[1766663837200,1.1945673,837.93,837.07,1.19046268]
[1766663837399,1.1945673,837.92,837.07,1.19046268]
[1766663837601,1.1945673,837.91,837.07,1.19046268]
[1766663837801,1.1945673,837.9,837.07,1.19046268]
[1766663838004,1.1945673,837.89,837.07,1.19046268]
[1766663838203,0.20771407,837.96,837.07,1.19046268]
[1766663838402,1.1945673,837.95,837.07,1.19046268]
[1766663838605,1.1945673,837.94,837.07,1.19046268]
[1766663838805,1.1945673,837.93,837.07,1.19046268]
[1766663839005,1.1945673,837.92,837.07,1.19046268]
[1766663839205,1.1945673,837.91,837.07,1.19046268]
[1766663839403,1.1945673,837.9,837.07,1.19046268]
[1766663839605,1.1945673,837.89,837.07,1.19046268]
[1766663839806,0.20771407,837.96,837.07,1.19046268]
[1766663840007,1.1945673,837.95,837.07,1.19046268]
[1766663840303,1.1945673,837.94,837.07,1.19046268]
[1766663840605,1.1945673,837.93,837.07,1.19046268]
[1766663840805,1.1945673,837.92,837.07,1.19046268]
[1766663841004,1.1945673,837.91,837.07,1.19046268]
[1766663841305,1.1945673,837.9,837.07,1.19046268]
[1766663841603,1.1945673,837.89,837.07,1.19046268]
[1766663841801,0.20771407,837.96,837.07,1.19046268]
[1766663842004,1.19456742,837.95,837.07,1.19046268]
[1766663842202,1.19456742,837.94,837.07,1.19046268]
[1766663842505,1.19456742,837.93,837.07,1.19046268]
[1766663842706,1.19456742,837.92,837.07,1.19046268]
[1766663843008,1.19456742,837.91,837.07,1.19046268]
[1766663843208,1.19456742,837.9,837.07,1.19046268]
[1766663843407,0.20771407,837.96,837.06,1.19046268]
[1766663843603,1.19456742,837.95,837.06,1.19046268]
[1766663843904,1.19456742,837.94,837.06,1.19046268]
[1766663844103,1.19456742,837.93,837.06,1.19046268]
[1766663844304,1.19456742,837.92,837.06,1.19046268]
[1766663844501,1.19456742,837.91,837.06,1.19046268]
[1766663844806,1.19456742,837.9,837.06,1.19046268]
[1766663845003,0.20771407,837.96,837.06,1.19046268]
[1766663845203,1.19456742,837.95,837.06,1.19046268]
[1766663845404,1.19456742,837.94,837.06,1.19046268]
[1766663845606,0.20771407,837.96,837.06,1.19046268]
[1766663845607,1.19456742,837.93,837.06,1.19046268]
[1766663845804,1.19456742,837.92,837.06,1.19046268]
[1766663846002,1.19456742,837.91,837.06,1.19046268]
[1766663846203,1.19456742,837.9,837.06,1.19046268]
[1766663846404,0.20771407,837.96,837.06,1.19046268]
[1766663846609,1.19456718,837.95,837.06,1.19046268]
[1766663846810,1.19456718,837.94,837.06,1.19046268]
[1766663847010,1.19456718,837.93,837.06,1.19046268]
[1766663847210,1.19456718,837.92,837.06,1.19046268]
[1766663847408,1.19456718,837.91,837.06,1.19046268]
[1766663847609,1.19456718,837.9,837.06,1.19046268]
[1766663847812,0.20771407,837.96,837.06,1.19046268]
[1766663848008,1.19456718,837.95,837.06,1.19046268]
[1766663848213,1.19456718,837.94,837.06,1.19046268]
[1766663848411,1.19456718,837.93,837.06,1.19046268]
[1766663848612,1.19456718,837.92,837.06,1.19046268]
[1766663848908,1.19456718,837.91,837.06,1.19046268]
[1766663849112,1.19456718,837.9,837.06,1.19046268]
[1766663849310,0.20771407,837.96,837.06,1.19046268]
[1766663849609,1.19456718,837.95,837.06,1.19046268]
[1766663849909,0.20771407,837.96,837.06,1.19046268]
[1766663849910,1.19456718,837.94,837.06,1.19046268]
[1766663850108,1.19456718,837.93,837.06,1.19046268]
[1766663850312,1.19456718,837.92,837.06,1.19046268]
[1766663850513,1.19456718,837.91,837.06,1.19046268]
[1766663850713,1.19456718,837.9,837.06,1.19046268]
[1766663850913,0.20771407,837.96,837.06,1.19046268]
[1766663851110,1.19456742,837.95,837.06,1.19046268]
[1766663851410,1.19456742,837.94,837.06,1.19046268]
[1766663851610,1.19456742,837.93,837.06,1.19046268]
[1766663851813,1.19456742,837.92,837.06,1.19046268]
[1766663852014,1.19456742,837.91,837.07,1.19046268]
[1766663852210,0.20771407,837.96,837.07,1.19046268]
[1766663852409,1.19455739,837.95,837.07,1.19046268]
[1766663852613,1.19455739,837.94,837.07,1.19046268]
[1766663852810,1.19455739,837.93,837.07,1.19046268]
[1766663853011,1.19455739,837.92,837.07,1.19046268]
[1766663853214,1.19455739,837.91,837.07,1.19046268]
[1766663853411,1.19455739,837.9,837.07,1.19046268]
[1766663853715,0.20771407,837.96,837.07,1.19046268]
[1766663853914,1.19455739,837.95,837.07,1.19046268]
[1766663854115,1.19455739,837.94,837.07,1.19046268]
[1766663854414,1.19455739,837.93,837.07,1.19046268]
[1766663854614,1.19455739,837.92,837.07,1.19046268]
[1766663854916,1.19455739,837.91,837.07,1.19046268]
[1766663855114,1.19455739,837.9,837.07,1.19046268]
[1766663855314,0.20771407,837.96,837.07,1.19046268]
[1766663855515,1.19455739,837.95,837.07,1.19046268]
[1766663855716,1.19455739,837.94,837.11,1.19046268]
[1766663855911,0.20771407,837.96,837.11,1.19046268]
[1766663856110,1.19450651,837.95,837.11,1.19046268]
[1766663856312,1.19450651,837.94,837.11,1.19046268]
[1766663856610,1.19450651,837.93,837.11,1.19046268]
[1766663856813,0.20771407,837.96,837.11,1.19046268]
[1766663857111,1.19450627,837.95,837.11,1.19046268]
[1766663857315,1.19450627,837.94,837.12,1.19046268]
[1766663857516,0.20771407,837.96,837.12,1.19046268]
[1766663857717,1.194494,837.95,837.12,1.19046268]
[1766663858016,0.20771407,837.96,837.12,1.19046268]
[1766663858211,0.89507301,838.22,837.28,1.19046268]
[1766663858416,0.20768866,838.1,837.27,1.19046268]
[1766663859412,0.20768866,838.1,837.26,1.19046268]
[1766663859918,0.20768866,838.1,837.24,1.19046268]
[1766663860319,0.20768866,838.1,837.23,1.19046268]
[1766663861319,0.20768866,838.1,837.22,1.19046268]
[1766663864418,0.20768866,838.1,837.21,1.19046268]
[1766663866623,0.20768866,838.1,837.17,1.19046268]
[1766663870327,0.20768866,838.1,837.16,1.19046268]
[1766663873527,0.20768866,838.1,837.01,1.78569412]
[1766663873528,0.20768866,838.1,837.17,1.19046268]
[1766663887540,0.20768866,838.1,837.18,1.19046268]
[1766663891447,0.20768866,838.1,837.19,1.19046268]
[1766663893251,1.19433149,838.09,837.19,1.19046268]
[1766663893453,0.20768866,838.1,837.19,1.19046268]
[1766663893652,1.19433149,838.09,837.19,1.19046268]
[1766663893947,0.20768866,838.1,837.19,1.19046268]
[1766663894152,1.1943315,838.09,837.19,1.19046268]
[1766663894348,0.20768866,838.1,837.2,1.19046268]
[1766663894553,1.1943315,838.09,837.2,1.19046268]
[1766663894853,0.20768866,838.1,837.2,1.19046268]
[1766663895149,1.1943315,838.09,837.2,1.19046268]
[1766663895352,1.1943315,838.08,837.2,1.19046268]
[1766663895553,0.20768866,838.1,837.2,1.19046268]
[1766663895754,1.1943315,838.09,837.2,1.19046268]
[1766663895953,1.1943315,838.08,837.2,1.19046268]
[1766663896150,0.20768866,838.1,837.2,1.19046268]
[1766663896354,1.1943315,838.09,837.21,1.19046268]
[1766663896551,1.1943315,838.08,837.21,1.19046268]
[1766663896849,0.20768866,838.1,837.21,1.19046268]
[1766663897054,1.1943315,838.09,837.21,1.19046268]
[1766663897351,1.1943315,838.08,837.22,1.19046268]
[1766663897554,1.1943315,838.07,837.22,1.19046268]
[1766663897754,0.20768866,838.1,837.22,1.19046268]
[1766663898054,1.1943315,838.09,837.22,1.19046268]
[1766663898254,1.1943315,838.08,837.22,1.19046268]
[1766663898453,1.1943315,838.07,837.22,1.19046268]
[1766663898750,0.20768866,838.1,837.22,1.19046268]
[1766663898950,1.1943315,838.09,837.22,1.19046268]
[1766663899150,1.1943315,838.08,837.22,1.19046268]
[1766663899350,1.1943315,838.07,837.23,1.19046268]
[1766663899555,1.1943315,838.06,837.23,1.19046268]
[1766663899754,0.20768866,838.1,837.23,1.19046268]
[1766663899952,1.1943315,838.09,837.23,1.19046268]
[1766663900156,1.1943315,838.08,837.23,1.19046268]
[1766663900353,1.1943315,838.07,837.24,1.19046268]
[1766663900552,1.1943315,838.06,837.24,1.19046268]
[1766663900852,1.1943315,838.05,837.24,1.19046268]
[1766663901054,0.20768866,838.1,837.24,1.19046268]
[1766663901358,1.19433185,838.09,837.25,1.19046268]
[1766663901555,1.19433185,838.08,837.25,1.19046268]
[1766663901755,1.19433185,838.07,837.25,1.19046268]
[1766663901958,1.19433185,838.06,837.25,1.19046268]
[1766663902157,1.19433185,838.05,837.25,1.19046268]
[1766663902458,1.19433185,838.04,837.26,1.19046268]
[1766663902655,1.19433185,838.03,837.26,1.19046268]
[1766663902855,0.20768866,838.1,837.26,1.19046268]
[1766663903055,1.19433185,838.09,837.26,1.19046268]
[1766663903254,1.19433185,838.08,837.26,1.19046268]
[1766663903455,1.19433185,838.07,837.26,1.19046268]
[1766663903760,1.19433185,838.06,837.26,1.19046268]
[1766663903957,1.19433185,838.05,837.26,1.19046268]
[1766663904161,1.19433185,838.04,837.26,1.19046268]
[1766663904361,1.19433185,838.03,837.26,1.19046268]
[1766663904557,1.19433185,838.02,837.26,1.19046268]
[1766663904758,0.20768866,838.1,837.26,1.19046268]
[1766663904958,1.19433185,838.09,837.26,1.19046268]
[1766663905258,1.19433185,838.08,837.26,1.19046268]
[1766663905461,1.19433185,838.07,837.27,1.19046268]
[1766663905761,1.19433185,838.06,837.26,1.19046268]
[1766663905965,1.19433185,838.05,837.26,1.19046268]
[1766663906162,1.19433185,838.04,837.26,1.19046268]
[1766663906459,1.19433185,838.03,837.26,1.19046268]
[1766663906663,1.19433185,838.02,837.26,1.19046268]
[1766663906965,0.20768866,838.1,837.26,1.19046268]
[1766663907164,1.19433185,838.09,837.26,1.19046268]
[1766663907464,1.19433185,838.08,837.27,1.19046268]
[1766663907663,1.19433185,838.07,837.27,1.19046268]
[1766663907963,1.19433185,838.06,837.27,1.19046268]
[1766663908163,1.19433185,838.05,837.27,1.19046268]
[1766663908463,2.08940486,838.04,837.18,1.19046268]
[1766663908661,2.08940486,838.03,837.18,1.19046268]
[1766663908863,1.19433185,838.02,837.18,1.19046268]
[1766663909364,1.19433185,838.02,837.17,1.19046268]
[1766663909562,1.19433185,838.01,837.17,1.19046268]
[1766663909862,0.89507301,838.04,837.17,1.19046268]
[1766663910066,1.19446228,838.03,837.17,1.19046268]
[1766663910266,1.19446228,838.02,837.16,1.19046268]
[1766663910562,1.19446228,838.01,837.16,1.19046268]
[1766663910762,1.19446228,838.0,837.16,1.19046268]
[1766663910965,1.19446228,837.99,837.16,1.19046268]
[1766663911264,1.19446228,837.98,837.16,1.19046268]
[1766663911561,1.19446228,837.97,837.16,1.19046268]
[1766663911762,1.19446228,837.96,837.16,1.19046268]
[1766663911962,1.19446228,837.95,837.16,1.19046268]
[1766663912262,0.89507301,838.05,837.16,1.19046268]
[1766663912564,1.19446252,838.04,837.15,1.19046268]
[1766663912866,1.19446252,838.03,837.15,1.19046268]
[1766663913067,1.19446252,838.02,837.15,1.19046268]
[1766663913265,0.89507301,838.06,837.15,1.19046268]
[1766663913266,1.19446252,838.01,837.15,1.19046268]
[1766663913463,1.19446252,838.0,837.15,1.19046268]
[1766663913665,1.19446252,837.99,837.15,1.19046268]
[1766663913866,1.19446252,837.98,837.15,1.19046268]
[1766663914065,1.19446252,837.97,837.15,1.19046268]
[1766663914270,1.19446252,837.96,837.15,1.19046268]
[1766663914469,0.89507301,838.06,837.15,1.19046268]
[1766663914668,1.19446252,838.05,837.15,1.19046268]
[1766663914868,1.19446252,838.04,837.15,1.19046268]
[1766663915068,1.19446252,838.03,837.15,1.19046268]
[1766663915269,1.19446252,838.02,837.15,1.19046268]
[1766663915469,1.19446252,838.01,837.14,1.19046268]
[1766663915669,1.19446252,838.0,837.14,1.19046268]
[1766663915871,0.89507301,838.06,837.14,1.19046268]
[1766663915872,1.19446252,837.99,837.14,1.19046268]
[1766663916069,1.19446252,837.98,837.14,1.19046268]
[1766663916271,1.19446252,837.97,837.14,1.19046268]
[1766663916472,0.89507301,838.06,837.14,1.19046268]
[1766663916473,1.19446252,837.96,837.14,1.19046268]
[1766663916672,0.89507301,838.07,837.14,1.19046268]
[1766663916873,1.19446268,838.06,837.14,1.19046268]
[1766663917074,1.19446268,838.05,837.14,1.19046268]
[1766663917275,1.19446268,838.04,837.14,1.19046268]
[1766663917477,1.19446268,838.03,837.14,1.19046268]
[1766663917771,1.19446268,838.02,837.14,1.19046268]
[1766663917972,1.19446268,838.01,837.14,1.19046268]
[1766663918172,1.19446268,838.0,837.14,1.19046268]
[1766663918376,1.19446268,837.99,837.14,1.19046268]
[1766663918676,1.19446268,837.98,837.14,1.19046268]
[1766663918875,1.19446268,837.97,837.14,1.19046268]
[1766663919074,1.19446268,837.96,837.14,1.19046268]
[1766663919273,0.89507301,838.07,837.14,1.19046268]
[1766663919474,1.19446186,838.06,837.14,1.19046268]
[1766663919673,1.19446186,838.05,837.14,1.19046268]
[1766663919976,1.19446186,838.04,837.14,1.19046268]
[1766663920176,1.19446186,838.03,837.14,1.19046268]
[1766663920377,1.19446186,838.02,837.13,1.19046268]
[1766663920572,1.19446186,838.01,837.13,1.19046268]
[1766663920776,1.19446186,838.0,837.13,1.19046268]
[1766663921074,1.19446186,837.99,837.13,1.19046268]
[1766663921272,1.19446186,837.98,837.13,1.19046268]
[1766663921573,1.19446186,837.97,837.13,1.19046268]
[1766663921773,0.89507301,838.08,837.13,1.19046268]
[1766663921977,1.19446198,838.07,837.13,1.19046268]
[1766663922177,1.19446198,838.06,837.13,1.19046268]
[1766663922378,1.19446198,838.05,837.13,1.19046268]
[1766663922577,1.19446198,838.04,837.13,1.19046268]
[1766663922873,1.19446198,838.03,837.13,1.19046268]
[1766663923077,1.19446198,838.02,837.13,1.19046268]
[1766663923277,1.19446198,838.01,837.13,1.19046268]
[1766663923477,1.19446198,838.0,837.13,1.19046268]
[1766663923677,1.19446198,837.99,837.13,1.19046268]
[1766663923875,1.19446198,837.98,837.13,1.19046268]
[1766663924079,1.19446198,837.97,837.13,1.19046268]
[1766663924380,0.89507301,838.08,837.13,1.19046268]
[1766663924575,1.19446198,838.07,837.13,1.19046268]
[1766663924775,1.19446198,838.06,837.13,1.19046268]
[1766663924979,1.19446198,838.05,837.13,1.19046268]
[1766663925273,1.19446198,838.04,837.13,1.19046268]
[1766663925480,1.19446198,838.03,837.13,1.19046268]
[1766663925676,1.19446198,838.02,837.13,1.19046268]
[1766663925875,1.19446198,838.01,837.13,1.19046268]
[1766663926075,1.19446198,838.0,837.13,1.19046268]
[1766663926378,1.19446198,837.99,837.13,1.19046268]
[1766663926577,1.19446198,837.98,837.13,1.19046268]
[1766663926877,1.19446198,837.97,837.13,1.19046268]
[1766663927077,0.89507301,838.08,837.13,1.19046268]
[1766663927280,1.19446174,838.07,837.13,1.19046268]
[1766663927577,1.19446174,838.06,837.13,1.19046268]
[1766663927777,1.19446174,838.05,837.13,1.19046268]
[1766663927976,1.19446174,838.04,837.13,1.19046268]
[1766663928177,1.19446174,838.03,837.13,1.19046268]
[1766663928480,1.19446174,838.02,837.13,1.19046268]
[1766663928782,1.19446174,838.01,837.13,1.19046268]
[1766663928978,1.19446174,838.0,837.13,1.19046268]
[1766663929279,1.19446174,837.99,837.13,1.19046268]
[1766663929478,1.19446174,837.98,837.13,1.19046268]
[1766663929777,1.19446174,837.97,837.13,1.19046268]
[1766663929978,0.89507301,838.08,837.13,1.19046268]
[1766663930280,1.19446174,838.07,837.13,1.19046268]
[1766663930480,1.19446174,838.06,837.13,1.19046268]
[1766663930683,1.19446174,838.05,837.13,1.19046268]
[1766663930877,1.19446174,838.04,837.13,1.19046268]
[1766663931082,1.19446174,838.03,837.13,1.19046268]
[1766663931280,1.19446174,838.02,837.13,1.19046268]
[1766663931484,1.19446174,838.01,837.13,1.19046268]
[1766663931682,1.19446174,838.0,837.13,1.19046268]
[1766663931882,1.19446174,837.99,837.13,1.19046268]
[1766663932082,1.19446174,837.98,837.13,1.19046268]
[1766663932385,1.19446174,837.97,837.13,1.19046268]
[1766663932586,0.89507301,838.08,837.13,1.19046268]
[1766663932783,1.19446174,838.07,837.13,1.19046268]
[1766663933084,1.19446174,838.06,837.13,1.19046268]
[1766663933287,1.19446174,838.05,837.13,1.19046268]
[1766663933486,1.19446174,838.04,837.13,1.19046268]
[1766663933682,1.19446174,838.03,837.13,1.19046268]
[1766663933886,1.19446174,838.02,837.13,1.19046268]
[1766663934087,1.19446174,838.01,837.13,1.19046268]
[1766663934390,1.19446174,838.0,837.13,1.19046268]
[1766663934684,1.19446174,837.99,837.13,1.19046268]
[1766663934883,1.19446174,837.98,837.13,1.19046268]
[1766663935081,1.19446174,837.97,837.13,1.19046268]
[1766663935285,0.20768866,838.1,837.16,1.19046268]
[1766663935486,1.19442279,838.09,837.16,1.19046268]
[1766663935688,1.19442279,838.08,837.16,1.19046268]
[1766663935885,1.19442279,838.07,837.16,1.19046268]
[1766663936089,1.19442279,838.06,837.16,1.19046268]
[1766663936385,1.19442279,838.05,837.16,1.19046268]
[1766663936689,1.19442279,838.04,837.16,1.19046268]
[1766663936988,1.19442279,838.03,837.19,1.19046268]
[1766663937188,0.20768866,838.1,837.19,1.19046268]
[1766663937386,1.19438236,838.09,837.19,1.19046268]
[1766663937589,1.19438236,838.08,837.19,1.19046268]
[1766663937788,1.19438236,838.07,837.19,1.19046268]
[1766663937985,1.19438236,838.06,837.2,1.19046268]
[1766663938190,1.19438236,838.05,837.2,1.19046268]
[1766663938390,1.19438236,838.04,837.2,1.19046268]
[1766663938685,0.20768866,838.1,837.2,1.19046268]
[1766663938890,1.19436232,838.09,837.2,1.19046268]
[1766663939089,1.19436232,838.08,837.2,1.19046268]
[1766663939285,1.19436232,838.07,837.2,1.19046268]
[1766663939485,1.19436232,838.06,837.2,1.19046268]
[1766663939789,1.19436232,838.05,837.2,1.19046268]
[1766663939991,1.19436232,838.04,837.2,1.19046268]
[1766663940288,0.20768866,838.1,837.2,1.19046268]
[1766663940486,1.19436232,838.09,837.2,1.19046268]
[1766663940687,1.19436232,838.08,837.2,1.19046268]
[1766663940885,1.19436232,838.07,837.2,1.19046268]
[1766663941189,1.19436232,838.06,837.2,1.19046268]
[1766663941485,0.20768866,838.1,837.21,1.19046268]
[1766663941486,1.19436232,838.05,837.21,1.19046268]
[1766663941685,1.19436232,838.04,837.21,1.19046268]
[1766663941989,0.20768866,838.1,837.21,1.19046268]
[1766663942184,1.19436232,838.09,837.21,1.19046268]
[1766663942384,1.19436232,838.08,837.21,1.19046268]
[1766663942586,1.19436232,838.07,837.21,1.19046268]
[1766663942790,1.19436232,838.06,837.21,1.19046268]
[1766663942988,1.19436232,838.05,837.21,1.19046268]
[1766663943185,1.19436232,838.04,837.21,1.19046268]
[1766663943385,0.20768866,838.1,837.21,1.19046268]
[1766663943590,1.19436291,838.09,837.21,1.19046268]
[1766663943886,1.19436291,838.08,837.21,1.19046268]
[1766663944089,1.19436291,838.07,837.21,1.19046268]
[1766663944286,1.19436291,838.06,837.21,1.19046268]
[1766663944486,1.19436291,838.05,837.21,1.19046268]
[1766663944688,1.19436291,838.04,837.21,1.19046268]
[1766663944887,1.19436291,838.03,837.21,1.19046268]
[1766663945088,0.20768866,838.1,837.21,1.19046268]
[1766663945286,1.19436279,838.09,837.21,1.19046268]
[1766663945484,1.19436279,838.08,837.21,1.19046268]
[1766663945687,1.19436279,838.07,837.21,1.19046268]
[1766663945891,1.19436279,838.06,837.21,1.19046268]
[1766663946091,1.19436279,838.05,837.21,1.19046268]
[1766663946292,1.19436279,838.04,837.21,1.19046268]
[1766663946592,0.20768866,838.1,837.22,1.19046268]
[1766663946792,1.19434169,838.09,837.22,1.19046268]
[1766663946992,1.19434169,838.08,837.22,1.19046268]
[1766663947292,1.19434169,838.07,837.22,1.19046268]
[1766663947488,1.19434169,838.06,837.22,1.19046268]
[1766663947692,1.19434169,838.05,837.22,1.19046268]
[1766663947892,0.20768866,838.1,837.22,1.19046268]
[1766663948094,1.19434169,838.09,837.22,1.19046268]
[1766663948394,1.19434169,838.08,837.22,1.19046268]
[1766663948691,1.19434169,838.07,837.22,1.19046268]
[1766663948889,1.19434169,838.06,837.22,1.19046268]
[1766663949094,1.19434169,838.05,837.22,1.19046268]
[1766663949295,0.20768866,838.1,837.22,1.19046268]
[1766663949592,1.19434169,838.09,837.22,1.19046268]
[1766663949792,1.19434169,838.08,837.22,1.19046268]
[1766663949991,1.19434169,838.07,837.22,1.19046268]
[1766663950196,1.19434169,838.06,837.22,1.19046268]
[1766663950395,1.19434169,838.05,837.22,1.19046268]
[1766663950696,0.20768866,838.1,837.22,1.19046268]
[1766663950897,1.19434157,838.09,837.22,1.19046268]
[1766663951097,1.19434157,838.08,837.22,1.19046268]
[1766663951297,1.19434157,838.07,837.22,1.19046268]
[1766663951593,1.19434157,838.06,837.22,1.19046268]
[1766663951798,1.19434157,838.05,837.22,1.19046268]
[1766663952099,0.20768866,838.1,837.23,1.19046268]
[1766663952298,1.19434098,838.09,837.23,1.19046268]
[1766663952495,1.19434098,838.08,837.23,1.19046268]
[1766663952798,1.19434098,838.07,837.23,1.19046268]
[1766663952998,1.19434098,838.06,837.23,1.19046268]
[1766663953199,1.19434098,838.05,837.23,1.19046268]
[1766663953392,0.20768866,838.1,837.23,1.19046268]
[1766663953597,1.19433096,838.09,837.23,1.19046268]
[1766663953895,1.19433096,838.08,837.23,1.19046268]
[1766663954098,1.19433096,838.07,837.23,1.19046268]
[1766663954296,1.19433096,838.06,837.23,1.19046268]
[1766663954496,1.19433096,838.05,837.23,1.19046268]
[1766663954700,0.20768866,838.1,837.23,1.19046268]
[1766663954894,1.19433096,838.09,837.23,1.19046268]
[1766663955100,1.19433096,838.08,837.23,1.19046268]
[1766663955299,1.19433096,838.07,837.23,1.19046268]
[1766663955498,1.19433096,838.06,837.23,1.19046268]
[1766663955699,0.20768866,838.1,837.27,1.19046268]
[1766663955900,1.19428063,838.09,837.27,1.19046268]
[1766663956099,0.20768866,838.1,837.27,1.19046268]
[1766663956303,1.19428063,838.09,837.26,1.19046268]
[1766663956598,0.20768866,838.1,837.26,1.19046268]
[1766663956801,1.19428063,838.09,837.26,1.19046268]
[1766663957002,0.20768866,838.1,837.26,1.19046268]
[1766663961203,0.20768866,838.1,837.25,1.19046268]
[1766663971217,1.1942916,838.09,837.22,1.19046268]
[1766663971417,1.1942916,838.08,837.23,1.19046268]
[1766663971618,1.1942916,838.07,837.23,1.19046268]
[1766663971814,0.20768866,838.1,837.23,1.19046268]
[1766663972017,1.19432189,838.09,837.23,1.19046268]
[1766663972214,1.19432189,838.08,837.23,1.19046268]
[1766663972420,1.19432189,838.07,837.23,1.19046268]
[1766663972615,1.19432189,838.07,836.47,2.98109633]
[1766663972616,2.0893949,838.06,837.11,1.19046268]
[1766663972819,0.89507301,838.01,837.06,1.19046268]
[1766663973019,1.19432189,838.0,837.06,1.19046268]
[1766663973315,0.89507301,837.98,837.02,1.19046268]
[1766663973514,1.19432189,837.97,837.02,1.19046268]
[1766663974215,1.19432189,837.97,837.01,1.19046268]
[1766663975220,1.19432189,837.97,837.0,1.19046268]
[1766663975420,1.19432189,837.96,837.0,1.19046268]
[1766663975720,1.19432189,837.95,837.0,1.19046268]
[1766663975920,1.19432189,837.94,837.0,1.19046268]
[1766663976120,0.89507301,837.99,837.0,1.19046268]
[1766663976121,1.19432189,837.93,837.0,1.19046268]
[1766663976321,1.19432189,837.92,837.0,1.19046268]
[1766663976518,1.19432189,837.91,837.0,1.19046268]
[1766663976719,1.19432189,837.9,837.0,1.19046268]
[1766663976918,1.19432189,837.89,837.0,1.19046268]
[1766663977121,0.89507301,838.0,836.99,1.19046268]
[1766663977320,1.19461553,837.99,836.99,1.19046268]
[1766663977518,1.19461553,837.98,836.99,1.19046268]
[1766663977722,1.19461553,837.97,836.99,1.19046268]
[1766663977923,1.19461553,837.96,836.99,1.19046268]
[1766663978120,1.19461553,837.95,836.99,1.19046268]
[1766663978320,1.19461553,837.94,836.99,1.19046268]
[1766663978521,1.19461553,837.93,836.99,1.19046268]
[1766663978725,1.19461553,837.92,836.99,1.19046268]
[1766663979022,1.19461553,837.91,836.99,1.19046268]
[1766663979225,0.89507301,838.01,836.99,1.19046268]
[1766663979427,1.19461577,838.0,836.98,1.19046268]
[1766663979623,1.19461577,837.99,836.98,1.19046268]
[1766663979822,1.19461577,837.98,836.98,1.19046268]
[1766663980023,1.19461577,837.97,836.98,1.19046268]
[1766663980220,1.19461577,837.96,836.98,1.19046268]